[Event "*** Titled Tuesday Blitz"]
[Site "Chess.com"]
[Date "2018.04.03"]
[Round "7"]
[White "Margency"]
[Black "Abrito99"]
[Result "0-1"]
[WhiteElo "2570"]
[BlackElo "2449"]
[TimeControl "180+2"]
[EndTime "14:32:32 PDT"]
[Termination "Abrito99 won by resignation"]

1. e4 {[%clk 0:03:01.9]} 1... c5 {[%clk 0:03:00.1]} 2. Nf3 {[%clk 0:03:02.7]}
2... e6 {[%clk 0:03:01.3]} 3. d4 {[%clk 0:03:03.4]} 3... cxd4 {[%clk 0:03:03.2]}
4. Nxd4 {[%clk 0:03:05.3]} 4... Nc6 {[%clk 0:03:04.2]} 5. Nc3 {[%clk 0:03:05.7]}
5... Qc7 {[%clk 0:03:02.7]} 6. Be3 {[%clk 0:03:06.6]} 6... a6 {[%clk 0:03:03.2]}
7. Qd2 {[%clk 0:03:07.4]} 7... Be7 {[%clk 0:03:00.8]} 8. O-O-O {[%clk
0:03:07.8]} 8... Nf6 {[%clk 0:02:58.6]} 9. f3 {[%clk 0:03:08.4]} 9... b5 {[%clk
0:02:59.7]} 10. Kb1 {[%clk 0:03:07.5]} 10... h5 {[%clk 0:02:58.9]} 11. Bd3
{[%clk 0:03:04.7]} 11... Bb7 {[%clk 0:02:46.1]} 12. Nxc6 {[%clk 0:03:00]} 12...
Bxc6 {[%clk 0:02:42.2]} 13. Ne2 {[%clk 0:02:53.8]} 13... e5 {[%clk 0:02:24.7]}
14. Bg5 {[%clk 0:02:29.2]} 14... Ng8 {[%clk 0:02:13.3]} 15. h4 {[%clk
0:02:14.6]} 15... Rd8 {[%clk 0:02:04.4]} 16. Nc3 {[%clk 0:02:12.9]} 16... f6
{[%clk 0:01:29.4]} 17. Be3 {[%clk 0:02:11.1]} 17... Kf7 {[%clk 0:01:13.1]} 18.
f4 {[%clk 0:02:06.8]} 18... Nh6 {[%clk 0:01:02.8]} 19. fxe5 {[%clk 0:02:04.7]}
19... Qxe5 {[%clk 0:01:04]} 20. Bf4 {[%clk 0:02:03.2]} 20... Qc5 {[%clk
0:01:04.5]} 21. Nd5 {[%clk 0:01:51.5]} 21... Rde8 {[%clk 0:00:49.9]} 22. Rhf1
{[%clk 0:01:43.7]} 22... Ng4 {[%clk 0:00:39.8]} 23. Be2 {[%clk 0:01:41.4]} 23...
Bd8 {[%clk 0:00:23.9]} 24. Bf3 {[%clk 0:01:22.4]} 24... Re6 {[%clk 0:00:20.5]}
25. Rc1 {[%clk 0:01:09.3]} 25... Ne5 {[%clk 0:00:19.6]} 26. Rfd1 {[%clk
0:01:03.6]} 26... g6 {[%clk 0:00:16.3]} 27. Be2 {[%clk 0:01:00.9]} 27... Nc4
{[%clk 0:00:15.4]} 28. Qe1 {[%clk 0:00:58.7]} 28... Rxe4 {[%clk 0:00:13]} 29.
Qf1 {[%clk 0:00:34.3]} 29... Bxd5 {[%clk 0:00:10.7]} 30. Bf3 {[%clk 0:00:33.6]}
30... Rd4 {[%clk 0:00:09.2]} 31. Qf2 {[%clk 0:00:21.7]} 31... Bb6 {[%clk
0:00:08]} 32. c3 {[%clk 0:00:19.6]} 32... Rxd1 {[%clk 0:00:07.2]} 33. Bxd5+
{[%clk 0:00:20.3]} 33... Rxd5 {[%clk 0:00:06.2]} 34. Qf3 {[%clk 0:00:20.7]}
34... Rf5 {[%clk 0:00:06.8]} 35. g3 {[%clk 0:00:21.4]} 35... Nd2+ {[%clk
0:00:07.5]} 36. Bxd2 {[%clk 0:00:21.9]} 36... Rxf3 {[%clk 0:00:08.6]} 37. c4
{[%clk 0:00:21.8]} 37... Re8 {[%clk 0:00:09.7]} 38. cxb5 {[%clk 0:00:22.6]}
38... Qf5+ {[%clk 0:00:08.3]} 39. Ka1 {[%clk 0:00:23.4]} 39... Rf1 {[%clk
0:00:09.8]} 40. a4 {[%clk 0:00:22.3]} 40... Rxc1+ {[%clk 0:00:09.3]} 41. Bxc1
{[%clk 0:00:24.2]} 41... Qc2 {[%clk 0:00:10.8]} 0-1

[Event "*** Titled Tuesday Blitz"]
[Site "Chess.com"]
[Date "2018.04.03"]
[Round "7"]
[White "Generalas"]
[Black "RojonR"]
[Result "1-0"]
[WhiteElo "2188"]
[BlackElo "2381"]
[TimeControl "180+2"]
[EndTime "14:32:45 PDT"]
[Termination "Generalas won by resignation"]

1. e4 {[%clk 0:03:01.9]} 1... c5 {[%clk 0:03:00.3]} 2. c3 {[%clk 0:03:03]} 2...
Nf6 {[%clk 0:02:59.8]} 3. e5 {[%clk 0:03:03.7]} 3... Nd5 {[%clk 0:03:00.7]} 4.
Nf3 {[%clk 0:03:05.4]} 4... Nc6 {[%clk 0:03:00.6]} 5. Bc4 {[%clk 0:03:05.1]}
5... e6 {[%clk 0:03:00.5]} 6. O-O {[%clk 0:03:05.1]} 6... d6 {[%clk 0:02:55.2]}
7. exd6 {[%clk 0:02:59.9]} 7... Bxd6 {[%clk 0:02:54.8]} 8. Re1 {[%clk
0:02:57.7]} 8... O-O {[%clk 0:02:53.2]} 9. d4 {[%clk 0:02:56.5]} 9... cxd4
{[%clk 0:02:40.1]} 10. Nxd4 {[%clk 0:02:57.4]} 10... Qh4 {[%clk 0:02:16]} 11. g3
{[%clk 0:02:54.3]} 11... Qf6 {[%clk 0:02:08.5]} 12. Nxc6 {[%clk 0:02:24.7]}
12... bxc6 {[%clk 0:02:08.9]} 13. Nd2 {[%clk 0:02:24.6]} 13... Qe7 {[%clk
0:01:42.8]} 14. Ne4 {[%clk 0:02:22]} 14... Bc7 {[%clk 0:01:40.2]} 15. Bg5 {[%clk
0:02:19.4]} 15... f6 {[%clk 0:01:38.1]} 16. Be3 {[%clk 0:02:18.6]} 16... Nxe3
{[%clk 0:01:33.5]} 17. Rxe3 {[%clk 0:02:20.5]} 17... Kh8 {[%clk 0:01:32.4]} 18.
Qh5 {[%clk 0:02:12]} 18... e5 {[%clk 0:01:10.3]} 19. Rae1 {[%clk 0:01:58.6]}
19... Bb6 {[%clk 0:00:59.5]} 20. Rf3 {[%clk 0:01:56.1]} 20... Bd7 {[%clk
0:00:48.5]} 21. Bd3 {[%clk 0:01:49.4]} 21... f5 {[%clk 0:00:32.1]} 22. Ng5
{[%clk 0:01:43.6]} 22... h6 {[%clk 0:00:32.6]} 23. Rxe5 {[%clk 0:00:42.2]} 23...
Qxg5 {[%clk 0:00:17.2]} 24. Qxg5 {[%clk 0:00:42.8]} 24... hxg5 {[%clk
0:00:19.1]} 25. Re7 {[%clk 0:00:44.2]} 25... Rad8 {[%clk 0:00:19.5]} 26. g4
{[%clk 0:00:42.3]} 26... fxg4 {[%clk 0:00:10.9]} 27. Rxf8+ {[%clk 0:00:42.7]}
27... Rxf8 {[%clk 0:00:12.4]} 28. Rxd7 {[%clk 0:00:44.2]} 28... Bxf2+ {[%clk
0:00:07.2]} 29. Kg2 {[%clk 0:00:44.9]} 29... Bb6 {[%clk 0:00:08.1]} 30. Kg3
{[%clk 0:00:44.9]} 30... Rd8 {[%clk 0:00:05.6]} 31. Rxd8+ {[%clk 0:00:43.2]}
31... Bxd8 {[%clk 0:00:07.5]} 32. Kxg4 {[%clk 0:00:44.7]} 32... Kg8 {[%clk
0:00:07.1]} 33. Kf5 {[%clk 0:00:44.9]} 33... Kf8 {[%clk 0:00:07.6]} 34. Be4
{[%clk 0:00:46.3]} 34... c5 {[%clk 0:00:08.2]} 35. Ke6 {[%clk 0:00:47.2]} 35...
g4 {[%clk 0:00:05.4]} 36. Bf5 {[%clk 0:00:47.2]} 36... Bc7 {[%clk 0:00:06.5]}
37. Bxg4 {[%clk 0:00:48.2]} 37... Bxh2 {[%clk 0:00:08]} 38. Kd5 {[%clk
0:00:48.9]} 38... Bg1 {[%clk 0:00:08.7]} 39. c4 {[%clk 0:00:50]} 39... Ke7
{[%clk 0:00:08.9]} 40. Kc6 {[%clk 0:00:51.5]} 40... Bd4 {[%clk 0:00:07.3]} 41.
b3 {[%clk 0:00:51.9]} 41... Kf6 {[%clk 0:00:03.7]} 42. a4 {[%clk 0:00:52.7]}
42... Ke5 {[%clk 0:00:03.9]} 43. a5 {[%clk 0:00:53.2]} 43... a6 {[%clk
0:00:03.8]} 44. Kb6 {[%clk 0:00:53.8]} 44... Bc3 {[%clk 0:00:02.9]} 45. Kxa6
{[%clk 0:00:54.5]} 45... Kd4 {[%clk 0:00:04]} 46. Kb5 {[%clk 0:00:55]} 46...
Bxa5 {[%clk 0:00:02.9]} 47. Kxa5 {[%clk 0:00:55.6]} 47... Kc3 {[%clk 0:00:04]}
48. Ka4 {[%clk 0:00:56.3]} 48... g5 {[%clk 0:00:04.2]} 49. Bh5 {[%clk
0:00:56.4]} 49... Kd4 {[%clk 0:00:04.9]} 50. Kb5 {[%clk 0:00:56.8]} 1-0

[Event "*** Titled Tuesday Blitz"]
[Site "Chess.com"]
[Date "2018.04.03"]
[Round "7"]
[White "volodja49"]
[Black "Mikhail_Golubev"]
[Result "1-0"]
[WhiteElo "2407"]
[BlackElo "2256"]
[TimeControl "180+2"]
[EndTime "14:32:51 PDT"]
[Termination "volodja49 won by resignation"]

1. d4 {[%clk 0:03:01.9]} 1... Nf6 {[%clk 0:02:59.4]} 2. c4 {[%clk 0:03:02.8]}
2... g6 {[%clk 0:02:59.9]} 3. Nc3 {[%clk 0:03:04.1]} 3... Bg7 {[%clk 0:03:00.6]}
4. e4 {[%clk 0:03:05]} 4... d6 {[%clk 0:03:01.2]} 5. f3 {[%clk 0:03:06.6]} 5...
O-O {[%clk 0:03:00.9]} 6. Nge2 {[%clk 0:03:08.1]} 6... a6 {[%clk 0:03:00.1]} 7.
Be3 {[%clk 0:03:08.6]} 7... Nbd7 {[%clk 0:03:00.1]} 8. Qd2 {[%clk 0:03:09.4]}
8... b5 {[%clk 0:02:57.6]} 9. cxb5 {[%clk 0:03:09.5]} 9... axb5 {[%clk 0:02:58]}
10. Nxb5 {[%clk 0:03:10.5]} 10... c6 {[%clk 0:02:58.7]} 11. Nbc3 {[%clk
0:03:10.5]} 11... e5 {[%clk 0:02:59.3]} 12. Rd1 {[%clk 0:02:34.9]} 12... Re8
{[%clk 0:02:42]} 13. dxe5 {[%clk 0:02:32.5]} 13... Nxe5 {[%clk 0:02:41.2]} 14.
Nc1 {[%clk 0:01:56.8]} 14... d5 {[%clk 0:02:28.9]} 15. exd5 {[%clk 0:01:55.3]}
15... Neg4 {[%clk 0:02:17.1]} 16. fxg4 {[%clk 0:01:47]} 16... Nxg4 {[%clk
0:02:17.4]} 17. dxc6 {[%clk 0:01:14.1]} 17... Qg5 {[%clk 0:02:09]} 18. Nd5
{[%clk 0:01:02.9]} 18... Nxe3 {[%clk 0:02:04.5]} 19. Nxe3 {[%clk 0:00:57.4]}
19... Rxe3+ {[%clk 0:01:55]} 20. Kf2 {[%clk 0:00:56.7]} 20... Qf5+ {[%clk
0:01:01.4]} 21. Kg1 {[%clk 0:00:51]} 21... Qc5 {[%clk 0:00:54]} 22. Qf2 {[%clk
0:00:43.2]} 22... Bg4 {[%clk 0:00:41.1]} 23. Be2 {[%clk 0:00:20.8]} 23... Bd4
{[%clk 0:00:30.4]} 24. Nb3 {[%clk 0:00:12.4]} 24... Rxe2 {[%clk 0:00:20.4]} 25.
Qxd4 {[%clk 0:00:09.7]} 25... Qg5 {[%clk 0:00:12.7]} 26. c7 {[%clk 0:00:05.3]}
26... Rxg2+ {[%clk 0:00:08.3]} 27. Kxg2 {[%clk 0:00:05.4]} 27... Bxd1+ {[%clk
0:00:08.5]} 28. Kf2 {[%clk 0:00:05.9]} 28... Qf5+ {[%clk 0:00:09.4]} 29. Ke1
{[%clk 0:00:06.5]} 29... Re8+ {[%clk 0:00:07.6]} 30. Kxd1 {[%clk 0:00:05.6]}
30... Qf3+ {[%clk 0:00:07.4]} 31. Kc2 {[%clk 0:00:06.7]} 31... Qc6+ {[%clk
0:00:05.4]} 32. Qc3 {[%clk 0:00:06.8]} 32... Qe4+ {[%clk 0:00:05.6]} 33. Qd3
{[%clk 0:00:07.3]} 33... Qxh1 {[%clk 0:00:06.2]} 34. Qd7 {[%clk 0:00:07.5]}
34... Qe4+ {[%clk 0:00:05.9]} 35. Kc3 {[%clk 0:00:08.2]} 35... Qe3+ {[%clk
0:00:06]} 36. Kc4 {[%clk 0:00:09.6]} 36... Qe4+ {[%clk 0:00:06.7]} 37. Nd4
{[%clk 0:00:10.9]} 37... Ra8 {[%clk 0:00:02.9]} 38. c8=Q+ {[%clk 0:00:11.1]}
38... Rxc8+ {[%clk 0:00:02.3]} 39. Qxc8+ {[%clk 0:00:13]} 39... Kg7 {[%clk
0:00:03.4]} 40. Qd7 {[%clk 0:00:14.9]} 40... Kh6 {[%clk 0:00:04]} 41. Qxf7
{[%clk 0:00:14.7]} 41... Qg2 {[%clk 0:00:02.9]} 42. Qf8+ {[%clk 0:00:15.6]}
42... Kh5 {[%clk 0:00:03.1]} 43. Qf3+ {[%clk 0:00:16.2]} 1-0

[Event "*** Titled Tuesday Blitz"]
[Site "Chess.com"]
[Date "2018.04.03"]
[Round "7"]
[White "FitnessBen"]
[Black "dimke2802"]
[Result "0-1"]
[WhiteElo "2455"]
[BlackElo "2325"]
[TimeControl "180+2"]
[EndTime "14:32:57 PDT"]
[Termination "dimke2802 won on time"]

1. e4 {[%clk 0:03:01.9]} 1... c5 {[%clk 0:02:59.2]} 2. Nf3 {[%clk 0:03:02.3]}
2... d6 {[%clk 0:02:59.9]} 3. d4 {[%clk 0:03:03.2]} 3... cxd4 {[%clk 0:03:01.8]}
4. Nxd4 {[%clk 0:03:04.6]} 4... Nf6 {[%clk 0:03:03]} 5. Nc3 {[%clk 0:03:06.2]}
5... Nc6 {[%clk 0:02:59.5]} 6. Bg5 {[%clk 0:03:06.1]} 6... e6 {[%clk 0:03:00.6]}
7. Qd2 {[%clk 0:03:07.3]} 7... a6 {[%clk 0:03:01.9]} 8. O-O-O {[%clk 0:03:08.8]}
8... Bd7 {[%clk 0:03:02.5]} 9. f4 {[%clk 0:03:10]} 9... h6 {[%clk 0:03:00.9]}
10. Bh4 {[%clk 0:03:05.4]} 10... Nxe4 {[%clk 0:03:01.8]} 11. Nxe4 {[%clk
0:03:00]} 11... Qxh4 {[%clk 0:03:01.4]} 12. Nxc6 {[%clk 0:02:57.9]} 12... Bxc6
{[%clk 0:03:02]} 13. Nxd6+ {[%clk 0:02:57.8]} 13... Bxd6 {[%clk 0:03:03.9]} 14.
Qxd6 {[%clk 0:02:59.1]} 14... Rd8 {[%clk 0:03:05.5]} 15. Qxd8+ {[%clk
0:02:58.9]} 15... Qxd8 {[%clk 0:03:07.4]} 16. Rxd8+ {[%clk 0:02:57.2]} 16...
Kxd8 {[%clk 0:03:09.3]} 17. Bd3 {[%clk 0:02:49.5]} 17... g5 {[%clk 0:03:08.1]}
18. Rd1 {[%clk 0:02:37]} 18... Ke7 {[%clk 0:02:38.1]} 19. g3 {[%clk 0:02:22.4]}
19... gxf4 {[%clk 0:02:34.7]} 20. gxf4 {[%clk 0:02:24.2]} 20... Rg8 {[%clk
0:02:35.7]} 21. c3 {[%clk 0:01:58.5]} 21... Kf6 {[%clk 0:02:34.3]} 22. Rd2
{[%clk 0:01:52.4]} 22... h5 {[%clk 0:01:31.4]} 23. Rf2 {[%clk 0:01:43.1]} 23...
h4 {[%clk 0:01:31.1]} 24. Kd2 {[%clk 0:01:42.6]} 24... h3 {[%clk 0:01:25.2]} 25.
Ke3 {[%clk 0:01:42.2]} 25... Rg1 {[%clk 0:01:24.4]} 26. Bf1 {[%clk 0:01:34.7]}
26... Bg2 {[%clk 0:01:19.5]} 27. Be2 {[%clk 0:01:22.8]} 27... Rh1 {[%clk
0:01:20.1]} 28. Bf3 {[%clk 0:01:21.1]} 28... Rxh2 {[%clk 0:01:16.7]} 29. Bxb7
{[%clk 0:01:21.4]} 29... Kf5 {[%clk 0:01:10.8]} 30. Bxa6 {[%clk 0:01:18]} 30...
Rh1 {[%clk 0:01:07.5]} 31. Bd3+ {[%clk 0:01:18.3]} 31... Kf6 {[%clk 0:01:07.4]}
32. Be2 {[%clk 0:01:00.2]} 32... Re1 {[%clk 0:01:02]} 33. Kd2 {[%clk 0:00:51.3]}
33... Rxe2+ {[%clk 0:00:57.1]} 34. Rxe2 {[%clk 0:00:51.6]} 34... h2 {[%clk
0:00:58.3]} 35. Re1 {[%clk 0:00:52.9]} 35... h1=Q {[%clk 0:00:48.8]} 36. Rxh1
{[%clk 0:00:53.2]} 36... Bxh1 {[%clk 0:00:50.7]} 37. Ke3 {[%clk 0:00:52.4]}
37... Ke7 {[%clk 0:00:48.9]} 38. a4 {[%clk 0:00:53.2]} 38... Kd6 {[%clk
0:00:49.7]} 39. Kd4 {[%clk 0:00:54.4]} 39... f6 {[%clk 0:00:48.9]} 40. b4 {[%clk
0:00:53.7]} 40... e5+ {[%clk 0:00:50.1]} 41. fxe5+ {[%clk 0:00:54.1]} 41...
fxe5+ {[%clk 0:00:50.9]} 42. Kc4 {[%clk 0:00:54.6]} 42... Bd5+ {[%clk
0:00:48.5]} 43. Kd3 {[%clk 0:00:53.5]} 43... Bb3 {[%clk 0:00:49.6]} 44. a5
{[%clk 0:00:51.6]} 44... Kd5 {[%clk 0:00:49.4]} 45. Ke3 {[%clk 0:00:51.1]} 45...
Bc4 {[%clk 0:00:49.9]} 46. Kf3 {[%clk 0:00:52]} 46... e4+ {[%clk 0:00:49.2]} 47.
Ke3 {[%clk 0:00:52.2]} 47... Ke5 {[%clk 0:00:49.3]} 48. Kd2 {[%clk 0:00:31.7]}
48... Kf4 {[%clk 0:00:49.7]} 49. Ke1 {[%clk 0:00:31.9]} 49... e3 {[%clk
0:00:50.6]} 50. Kd1 {[%clk 0:00:32.7]} 50... Kf3 {[%clk 0:00:50.8]} 51. Ke1
{[%clk 0:00:33]} 51... e2 {[%clk 0:00:49.8]} 0-1

[Event "*** Titled Tuesday Blitz"]
[Site "Chess.com"]
[Date "2018.04.03"]
[Round "7"]
[White "ChessQueen"]
[Black "nubair1198"]
[Result "1-0"]
[WhiteElo "2656"]
[BlackElo "2564"]
[TimeControl "180+2"]
[EndTime "14:32:58 PDT"]
[Termination "ChessQueen won by resignation"]

1. e4 {[%clk 0:03:01.9]} 1... c6 {[%clk 0:02:54.8]} 2. Nc3 {[%clk 0:03:01.6]}
2... d5 {[%clk 0:02:56.3]} 3. Nf3 {[%clk 0:03:02]} 3... Nf6 {[%clk 0:02:57.2]}
4. e5 {[%clk 0:03:03]} 4... Ne4 {[%clk 0:02:58.8]} 5. d4 {[%clk 0:03:04.4]} 5...
Bg4 {[%clk 0:02:54.7]} 6. h3 {[%clk 0:03:01.5]} 6... Bh5 {[%clk 0:02:54.4]} 7.
Bd3 {[%clk 0:02:58]} 7... Nxc3 {[%clk 0:02:32.8]} 8. bxc3 {[%clk 0:02:58.6]}
8... e6 {[%clk 0:02:34.3]} 9. Rb1 {[%clk 0:02:59.3]} 9... b5 {[%clk 0:02:34]}
10. O-O {[%clk 0:02:29.9]} 10... Nd7 {[%clk 0:02:33.2]} 11. g4 {[%clk
0:02:15.6]} 11... Bg6 {[%clk 0:02:33.6]} 12. Nh2 {[%clk 0:02:15.9]} 12... Qa5
{[%clk 0:01:08.7]} 13. Bd2 {[%clk 0:01:51.6]} 13... c5 {[%clk 0:00:36.1]} 14. f4
{[%clk 0:01:47.8]} 14... c4 {[%clk 0:00:34.5]} 15. f5 {[%clk 0:01:45.4]} 15...
cxd3 {[%clk 0:00:33.7]} 16. fxg6 {[%clk 0:01:46.2]} 16... hxg6 {[%clk
0:00:34.5]} 17. Qf3 {[%clk 0:01:45.3]} 17... f5 {[%clk 0:00:28.1]} 18. exf6
{[%clk 0:01:43.9]} 18... gxf6 {[%clk 0:00:27.2]} 19. Qxd3 {[%clk 0:01:43.6]}
19... f5 {[%clk 0:00:22.1]} 20. Rxb5 {[%clk 0:01:44.2]} 20... Qxa2 {[%clk
0:00:16.8]} 21. Re1 {[%clk 0:01:41.3]} 21... Kf7 {[%clk 0:00:15.2]} 22. Rb7
{[%clk 0:01:40.8]} 22... Rd8 {[%clk 0:00:16.1]} 23. Qe2 {[%clk 0:01:36.5]} 23...
e5 {[%clk 0:00:15.4]} 24. dxe5 {[%clk 0:01:30.9]} 24... Ke6 {[%clk 0:00:16.8]}
25. Nf3 {[%clk 0:01:29.7]} 25... Bc5+ {[%clk 0:00:15.8]} 26. Kg2 {[%clk
0:01:30.5]} 26... fxg4 {[%clk 0:00:13]} 27. Ng5+ {[%clk 0:01:29.8]} 27... Ke7
{[%clk 0:00:14.6]} 28. Qxg4 {[%clk 0:01:29]} 28... d4 {[%clk 0:00:15.9]} 29.
cxd4 {[%clk 0:01:23.2]} 29... Qd5+ {[%clk 0:00:17.4]} 30. Qf3 {[%clk 0:01:24.2]}
30... Qxf3+ {[%clk 0:00:16.8]} 31. Nxf3 {[%clk 0:01:25.2]} 31... Bb6 {[%clk
0:00:18.3]} 32. e6 {[%clk 0:01:26.3]} 32... Kd6 {[%clk 0:00:18.1]} 33. Rxd7+
{[%clk 0:01:27]} 33... Rxd7 {[%clk 0:00:20]} 34. exd7 {[%clk 0:01:26.4]} 34...
Kxd7 {[%clk 0:00:21.9]} 35. c4 {[%clk 0:01:27.4]} 35... Bc7 {[%clk 0:00:20.9]}
36. d5 {[%clk 0:01:26.6]} 36... Rb8 {[%clk 0:00:22.4]} 37. c5 {[%clk 0:01:23.8]}
37... Rb2 {[%clk 0:00:23.6]} 38. Re6 {[%clk 0:01:13.6]} 38... Bf4 {[%clk
0:00:22.2]} 39. c6+ {[%clk 0:01:14.6]} 39... Kc7 {[%clk 0:00:23.6]} 40. Re2
{[%clk 0:01:15.1]} 40... Kc8 {[%clk 0:00:13.2]} 41. Kf2 {[%clk 0:01:14.4]} 41...
Bd6 {[%clk 0:00:13.6]} 42. Re6 {[%clk 0:01:14.2]} 42... Bf4 {[%clk 0:00:11.7]}
43. Ke2 {[%clk 0:01:15.3]} 43... g5 {[%clk 0:00:12.5]} 44. d6 {[%clk 0:01:15.6]}
44... Kd8 {[%clk 0:00:13.2]} 45. c7+ {[%clk 0:01:16]} 45... Kd7 {[%clk
0:00:14.5]} 46. Re7+ {[%clk 0:01:09.5]} 46... Kxd6 {[%clk 0:00:15.6]} 47. c8=Q
{[%clk 0:01:09.7]} 47... Kxe7 {[%clk 0:00:16.8]} 48. Qc5+ {[%clk 0:01:08.5]}
48... Ke8 {[%clk 0:00:16.6]} 49. Qxa7 {[%clk 0:01:08.4]} 49... Bd6 {[%clk
0:00:05.9]} 50. Kd3 {[%clk 0:01:06.2]} 50... Rb3+ {[%clk 0:00:06.6]} 51. Ke4
{[%clk 0:01:07.1]} 51... g4 {[%clk 0:00:07.2]} 52. hxg4 {[%clk 0:01:07.4]} 52...
Rb1 {[%clk 0:00:06.1]} 53. Kd5 {[%clk 0:01:07.8]} 53... Be7 {[%clk 0:00:06.6]}
54. Ke6 {[%clk 0:01:07.9]} 54... Ba3 {[%clk 0:00:02.6]} 55. Qa8+ {[%clk
0:01:07.2]} 55... Rb8 {[%clk 0:00:03.1]} 1-0

[Event "*** Titled Tuesday Blitz"]
[Site "Chess.com"]
[Date "2018.04.03"]
[Round "7"]
[White "Al_Shima"]
[Black "Bauxi435"]
[Result "1-0"]
[WhiteElo "2290"]
[BlackElo "2424"]
[TimeControl "180+2"]
[EndTime "14:33:21 PDT"]
[Termination "Al_Shima won by resignation"]

1. b3 {[%clk 0:03:01.9]} 1... e5 {[%clk 0:02:59.6]} 2. Bb2 {[%clk 0:03:03.8]}
2... Nc6 {[%clk 0:03:01]} 3. e3 {[%clk 0:03:04.8]} 3... d5 {[%clk 0:03:01.7]} 4.
Bb5 {[%clk 0:03:05.2]} 4... e4 {[%clk 0:03:02.5]} 5. Ne2 {[%clk 0:02:57.3]} 5...
Qg5 {[%clk 0:03:02.8]} 6. Ng3 {[%clk 0:02:57.9]} 6... h5 {[%clk 0:02:56.7]} 7.
h4 {[%clk 0:02:48.7]} 7... Qg6 {[%clk 0:02:53.6]} 8. Nc3 {[%clk 0:02:45.8]} 8...
Be6 {[%clk 0:02:49.8]} 9. d3 {[%clk 0:02:44.6]} 9... Bd6 {[%clk 0:02:48.2]} 10.
Nce2 {[%clk 0:02:44.6]} 10... Bg4 {[%clk 0:02:39]} 11. Qd2 {[%clk 0:02:44.3]}
11... Bxe2 {[%clk 0:02:37.7]} 12. Nxe2 {[%clk 0:02:38.8]} 12... Ne7 {[%clk
0:02:27.1]} 13. O-O-O {[%clk 0:02:33]} 13... a6 {[%clk 0:02:21.4]} 14. Bxc6+
{[%clk 0:02:33.1]} 14... Nxc6 {[%clk 0:02:23.1]} 15. dxe4 {[%clk 0:02:31.7]}
15... dxe4 {[%clk 0:02:23.6]} 16. Nd4 {[%clk 0:02:25.7]} 16... Ne7 {[%clk
0:02:17.6]} 17. f4 {[%clk 0:02:20.4]} 17... O-O-O {[%clk 0:02:11.2]} 18. Qf2
{[%clk 0:01:54.9]} 18... Nf5 {[%clk 0:01:57.3]} 19. Nxf5 {[%clk 0:01:52.6]}
19... Qxf5 {[%clk 0:01:58.5]} 20. Bxg7 {[%clk 0:01:52.2]} 20... Rhg8 {[%clk
0:01:25.5]} 21. Bb2 {[%clk 0:01:52.4]} 21... Rg6 {[%clk 0:01:23]} 22. Rd2 {[%clk
0:01:38.8]} 22... Rdg8 {[%clk 0:01:23.2]} 23. Rh2 {[%clk 0:01:32.1]} 23... Rg3
{[%clk 0:01:20.8]} 24. Qe2 {[%clk 0:01:22.6]} 24... Qg4 {[%clk 0:01:16.2]} 25.
Qxg4+ {[%clk 0:01:21.1]} 25... R8xg4 {[%clk 0:01:13.2]} 26. Re2 {[%clk
0:00:59.5]} 26... Be7 {[%clk 0:01:12.4]} 27. Bc3 {[%clk 0:00:50.5]} 27... Bc5
{[%clk 0:00:50]} 28. Bd2 {[%clk 0:00:44.5]} 28... f5 {[%clk 0:00:45.9]} 29. Kd1
{[%clk 0:00:43.7]} 29... Rg6 {[%clk 0:00:35.8]} 30. Ke1 {[%clk 0:00:37.1]} 30...
a5 {[%clk 0:00:22.6]} 31. a4 {[%clk 0:00:35.9]} 31... Bb4 {[%clk 0:00:21.4]} 32.
Kf2 {[%clk 0:00:26.4]} 32... Bxd2 {[%clk 0:00:18]} 33. Rxd2 {[%clk 0:00:28.3]}
33... b6 {[%clk 0:00:19.1]} 34. Rd5 {[%clk 0:00:26.8]} 34... Rg8 {[%clk
0:00:16]} 35. Rxf5 {[%clk 0:00:26.5]} 35... R3g6 {[%clk 0:00:17.5]} 36. Re5
{[%clk 0:00:22.4]} 36... Rd8 {[%clk 0:00:17.3]} 37. Rxe4 {[%clk 0:00:23.5]}
37... Rd2+ {[%clk 0:00:17.2]} 38. Kf3 {[%clk 0:00:24.9]} 38... Rxc2 {[%clk
0:00:18.3]} 39. f5 {[%clk 0:00:23.4]} 39... Rd6 {[%clk 0:00:18]} 40. Rf4 {[%clk
0:00:21.5]} 40... Kd7 {[%clk 0:00:18.7]} 41. Rh1 {[%clk 0:00:21]} 41... Rdd2
{[%clk 0:00:19.2]} 42. Rg1 {[%clk 0:00:21.3]} 42... Ke7 {[%clk 0:00:19.6]} 43.
g4 {[%clk 0:00:22.1]} 43... hxg4+ {[%clk 0:00:20.8]} 44. Rgxg4 {[%clk
0:00:22.8]} 44... Kf6 {[%clk 0:00:20.6]} 45. Rg6+ {[%clk 0:00:23.5]} 45... Ke5
{[%clk 0:00:19.6]} 46. Re6+ {[%clk 0:00:24.4]} 46... Kd5 {[%clk 0:00:20.1]} 47.
Re7 {[%clk 0:00:22]} 47... Rg2 {[%clk 0:00:20.4]} 48. Rd4+ {[%clk 0:00:20.6]}
48... Kc6 {[%clk 0:00:21]} 49. Rc4+ {[%clk 0:00:19.8]} 49... Rxc4 {[%clk
0:00:21.8]} 50. bxc4 {[%clk 0:00:21]} 50... Rh2 {[%clk 0:00:21.1]} 51. f6 {[%clk
0:00:19.4]} 51... Rxh4 {[%clk 0:00:21.3]} 52. f7 {[%clk 0:00:20.6]} 52... Rh1
{[%clk 0:00:21.6]} 53. Kg2 {[%clk 0:00:20.4]} 53... Rh7 {[%clk 0:00:21.7]} 54.
f8=Q {[%clk 0:00:21.1]} 54... Rh6 {[%clk 0:00:23.2]} 55. Qxh6+ {[%clk
0:00:21.6]} 1-0